Workbook

Sheet Coin Flip by flip
H1: Coin Flips = | I1: =I2-1 -> 0 | L1: 0 | M1: =L1+1 -> 1 | N1: 2 | O1: 3 | P1: 4 | Q1: 5 | R1: 6 | S1: 7 | T1: 8 | U1: 9 | V1: 10 | W1: 11 | X1: 12 | Y1: 13 | Z1: 14 | AA1: 15 | AB1: 16 | AC1: 17 | AD1: 18 | AE1: 19 | AF1: 20 | AG1: 21 | AH1: 22 | AI1: 23 | AJ1: 24 | AK1: 25 | AL1: 26 | AM1: 27 | AN1: 28 | AO1: 29
I2: 1
F3: Flip | G3: Result | H3: H's so far | I3: P(Head)
A4: =IF(B4="","",A3+B4) ->  | B4: =IF(F4<I$2,C4,"") ->  | C4: 1 | D4: H | F4: 1 | G4: =IF(H4="","",D4) ->  | H4: =A4 ->  | I4: =IF(B4="","",H4/F4) -> 
A5: =IF(B5="","",A4+B5) ->  | C5: 0 | D5: T | F5: 2 | G5: =IF(H5="","",D5) ->  | I5: =IF(B5="","",H5/F5) -> 
A6: =IF(B6="","",A5+B6) ->  | C6: 1 | D6: H | F6: 3 | I6: =IF(B6="","",H6/F6) -> 
C7: 0 | D7: T | F7: 4
C8: 1 | D8: H | F8: 5
C9: 1 | D9: H | F9: 6
C10: 0 | D10: T | F10: 7
C11: 0 | D11: T | F11: 8
C12: 0 | D12: T | F12: 9
C13: 1 | D13: H | F13: 10
C14: 1 | D14: H | F14: 11
A15: =IF(B15="","",A14+B15) ->  | C15: 1 | D15: H | F15: 12
C16: 0 | D16: T | F16: 13
C17: 0 | D17: T | F17: 14
C18: 0 | D18: T | F18: 15
C19: 1 | D19: H | F19: 16
C20: 0 | D20: T | F20: 17
C21: 0 | D21: T | F21: 18
C22: 0 | D22: T | F22: 19
A23: =IF(B23="","",A22+B23) ->  | C23: 1 | D23: H | F23: 20 | H23: =A23 ->  | I23: =IF(B23="","",H23/F23) -> 
C24: 1 | D24: H | F24: 21
C25: 1 | D25: H | F25: 22
C26: 0 | D26: T | F26: 23
C27: 0 | D27: T | F27: 24
C28: 0 | D28: T | F28: 25
C29: 0 | D29: T | F29: 26
C30: 1 | D30: H | F30: 27
C31: 0 | D31: T | F31: 28
C32: 0 | D32: T | F32: 29
C33: 0 | D33: T | F33: 30
C34: 1 | D34: H | F34: 31
C35: 1 | D35: H | F35: 32
C36: 1 | D36: H | F36: 33
C37: 0 | D37: T | F37: 34
C38: 1 | D38: H | F38: 35
C39: 1 | D39: H | F39: 36
C40: 1 | D40: H | F40: 37
C41: 0 | D41: T | F41: 38
C42: 0 | D42: T | F42: 39
C43: 1 | D43: H | F43: 40
C44: 0 | D44: T | F44: 41
C45: 0 | D45: T | F45: 42
C46: 1 | D46: H | F46: 43
C47: 1 | D47: H | F47: 44
C48: 1 | D48: H | F48: 45
C49: 1 | D49: H | F49: 46
C50: 0 | D50: T | F50: 47
C51: 1 | D51: H | F51: 48
C52: 1 | D52: H | F52: 49
C53: 1 | D53: H | F53: 50
C54: 1 | D54: H | F54: 51
C55: 0 | D55: T | F55: 52
C56: 0 | D56: T | F56: 53
C57: 1 | D57: H | F57: 54
C58: 0 | D58: T | F58: 55
C59: 1 | D59: H | F59: 56
C60: 1 | D60: H | F60: 57
C61: 1 | D61: H | F61: 58
C62: 1 | D62: H | F62: 59
C63: 1 | D63: H | F63: 60
C64: 1 | D64: H | F64: 61
C65: 1 | D65: H | F65: 62
C66: 1 | D66: H | F66: 63
C67: 1 | D67: H | F67: 64
B68: =IF(F68<I$2,C68,"") ->  | C68: 1 | D68: H | F68: 65
C69: 1 | D69: H | F69: 66 | G69: =IF(H69="","",D69) -> 
C70: 0 | D70: T | F70: 67
C71: 1 | D71: H | F71: 68
C72: 0 | D72: T | F72: 69
C73: 1 | D73: H | F73: 70
C74: 1 | D74: H | F74: 71
C75: 1 | D75: H | F75: 72
C76: 1 | D76: H | F76: 73
C77: 0 | D77: T | F77: 74
C78: 0 | D78: T | F78: 75
C79: 0 | D79: T | F79: 76
C80: 1 | D80: H | F80: 77
C81: 1 | D81: H | F81: 78
C82: 1 | D82: H | F82: 79
C83: 1 | D83: H | F83: 80
C84: 1 | D84: H | F84: 81
C85: 1 | D85: H | F85: 82
C86: 0 | D86: T | F86: 83
A87: =IF(B87="","",A86+B87) ->  | C87: 0 | D87: T | F87: 84 | H87: =A87 ->  | I87: =IF(B87="","",H87/F87) -> 
C88: 0 | D88: T | F88: 85
C89: 1 | D89: H | F89: 86
C90: 0 | D90: T | F90: 87
C91: 1 | D91: H | F91: 88
C92: 0 | D92: T | F92: 89
C93: 0 | D93: T | F93: 90
C94: 1 | D94: H | F94: 91
C95: 0 | D95: T | F95: 92
C96: 1 | D96: H | F96: 93
C97: 1 | D97: H | F97: 94
C98: 1 | D98: H | F98: 95
C99: 0 | D99: T | F99: 96
C100: 1 | D100: H | F100: 97
C101: 0 | D101: T | F101: 98
C102: 0 | D102: T | F102: 99
C103: 0 | D103: T | F103: 100
C104: 0 | D104: T | F104: 101
C105: 0 | D105: T | F105: 102
C106: 0 | D106: T | F106: 103
C107: 0 | D107: T | F107: 104
C108: 1 | D108: H | F108: 105
C109: 1 | D109: H | F109: 106
C110: 1 | D110: H | F110: 107
C111: 1 | D111: H | F111: 108
C112: 1 | D112: H | F112: 109
C113: 1 | D113: H | F113: 110
C114: 1 | D114: H | F114: 111
C115: 1 | D115: H | F115: 112
C116: 1 | D116: H | F116: 113
C117: 0 | D117: T | F117: 114
C118: 0 | D118: T | F118: 115
C119: 1 | D119: H | F119: 116
C120: 0 | D120: T | F120: 117
C121: 0 | D121: T | F121: 118
C122: 0 | D122: T | F122: 119
C123: 0 | D123: T | F123: 120
C124: 0 | D124: T | F124: 121
C125: 1 | D125: H | F125: 122
C126: 1 | D126: H | F126: 123
C127: 0 | D127: T | F127: 124
C128: 1 | D128: H | F128: 125
C129: 1 | D129: H | F129: 126
C130: 0 | D130: T | F130: 127
C131: 1 | D131: H | F131: 128
B132: =IF(F132<I$2,C132,"") ->  | C132: 0 | D132: T | F132: 129
C133: 1 | D133: H | F133: 130 | G133: =IF(H133="","",D133) -> 
C134: 0 | D134: T | F134: 131
C135: 0 | D135: T | F135: 132
C136: 1 | D136: H | F136: 133
C137: 1 | D137: H | F137: 134
C138: 0 | D138: T | F138: 135
C139: 0 | D139: T | F139: 136
C140: 0 | D140: T | F140: 137
C141: 1 | D141: H | F141: 138
C142: 1 | D142: H | F142: 139
C143: 0 | D143: T | F143: 140
C144: 0 | D144: T | F144: 141
C145: 0 | D145: T | F145: 142
C146: 1 | D146: H | F146: 143
C147: 1 | D147: H | F147: 144
C148: 1 | D148: H | F148: 145
C149: 1 | D149: H | F149: 146
C150: 0 | D150: T | F150: 147
A151: =IF(B151="","",A150+B151) ->  | C151: 1 | D151: H | F151: 148 | H151: =A151 ->  | I151: =IF(B151="","",H151/F151) -> 
C152: 0 | D152: T | F152: 149
C153: 0 | D153: T | F153: 150
C154: 1 | D154: H | F154: 151
C155: 1 | D155: H | F155: 152
C156: 0 | D156: T | F156: 153
C157: 1 | D157: H | F157: 154
C158: 1 | D158: H | F158: 155
C159: 1 | D159: H | F159: 156
C160: 1 | D160: H | F160: 157
C161: 0 | D161: T | F161: 158
C162: 0 | D162: T | F162: 159
C163: 1 | D163: H | F163: 160
C164: 0 | D164: T | F164: 161
C165: 0 | D165: T | F165: 162
C166: 0 | D166: T | F166: 163
C167: 0 | D167: T | F167: 164
C168: 1 | D168: H | F168: 165
C169: 1 | D169: H | F169: 166
C170: 1 | D170: H | F170: 167
C171: 1 | D171: H | F171: 168
C172: 1 | D172: H | F172: 169
C173: 1 | D173: H | F173: 170
C174: 1 | D174: H | F174: 171
C175: 1 | D175: H | F175: 172
C176: 1 | D176: H | F176: 173
C177: 0 | D177: T | F177: 174
C178: 1 | D178: H | F178: 175
C179: 0 | D179: T | F179: 176
C180: 1 | D180: H | F180: 177
C181: 0 | D181: T | F181: 178
C182: 1 | D182: H | F182: 179
C183: 1 | D183: H | F183: 180
C184: 0 | D184: T | F184: 181
C185: 0 | D185: T | F185: 182
C186: 0 | D186: T | F186: 183
C187: 1 | D187: H | F187: 184
C188: 0 | D188: T | F188: 185
C189: 0 | D189: T | F189: 186
C190: 0 | D190: T | F190: 187
C191: 0 | D191: T | F191: 188
C192: 1 | D192: H | F192: 189
C193: 0 | D193: T | F193: 190
C194: 1 | D194: H | F194: 191
C195: 0 | D195: T | F195: 192
B196: =IF(F196<I$2,C196,"") ->  | C196: 1 | D196: H | F196: 193
C197: 1 | D197: H | F197: 194 | G197: =IF(H197="","",D197) -> 
C198: 0 | D198: T | F198: 195
C199: 0 | D199: T | F199: 196
C200: 1 | D200: H | F200: 197
... 303 more rows

Sheet Repeating Coin Flips
G1: delete here | J1: 0 | K1: =J1+1 -> 1 | L1: =K1+1 -> 2 | M1: 3 | N1: 4 | O1: 5 | P1: 6 | Q1: 7 | R1: 8 | S1: 9 | T1: 10 | U1: 11 | V1: 12 | W1: 13 | X1: 14 | Y1: 15 | Z1: 16 | AA1: 17 | AB1: 18 | AC1: 19 | AD1: 20 | AE1: 21 | AF1: 22 | AG1: 23 | AH1: 24 | AI1: 25 | AJ1: 26 | AK1: 27 | AL1: 28 | AM1: 29
C2: Flipping a coin
D3: Flip | E3: Result | F3: H's so far | G3: P(Head)
A4: =B4 -> 0 | B4: =IF(E4="H",1,0) -> 0 | C4: =INT(RAND()*2)+1 -> 2 | D4: 1 | E4: =IF(C4=1,"H","T") -> T | F4: =A4 -> 0 | G4: =F4/D4 -> 0
A5: =A4+B5 -> 1 | B5: =IF(E5="H",1,0) -> 1 | C5: =INT(RAND()*2)+1 -> 1 | D5: 2 | E5: =IF(C5=1,"H","T") -> H | F5: =A5 -> 1 | G5: =F5/D5 -> 0.5
A6: =A5+B6 -> 2 | B6: 1 | C6: 1 | D6: 3 | E6: H | F6: 2 | G6: 0.6666666667
A7: 2 | B7: 0 | C7: 2 | D7: 4 | E7: T | F7: 2 | G7: 0.5
A8: 2 | B8: 0 | C8: 2 | D8: 5 | E8: T | F8: 2 | G8: 0.4
A9: 2 | B9: 0 | C9: 2 | D9: 6 | E9: T | F9: 2 | G9: 0.3333333333
A10: 3 | B10: 1 | C10: 1 | D10: 7 | E10: H | F10: 3 | G10: 0.4285714286
A11: 3 | B11: 0 | C11: 2 | D11: 8 | E11: T | F11: 3 | G11: 0.375
A12: 4 | B12: 1 | C12: 1 | D12: 9 | E12: H | F12: 4 | G12: 0.4444444444
A13: =A12+B13 -> 5 | B13: =IF(E13="H",1,0) -> 1 | C13: 1 | D13: 10 | E13: =IF(C13=1,"H","T") -> H | F13: =A13 -> 5 | G13: 0.5
A14: =A13+B14 -> 5 | B14: =IF(E14="H",1,0) -> 0 | C14: 2 | D14: 11 | E14: =IF(C14=1,"H","T") -> T | F14: =A14 -> 5 | G14: 0.4545454545
A15: =A14+B15 -> 5 | B15: =IF(E15="H",1,0) -> 0 | C15: 2 | D15: 12 | E15: =IF(C15=1,"H","T") -> T | F15: =A15 -> 5 | G15: =F15/D15 -> 0.4166666667
A16: 6 | B16: 1 | C16: 1 | D16: 13 | E16: H | F16: 6 | G16: 0.4615384615
A17: 6 | B17: 0 | C17: 2 | D17: 14 | E17: T | F17: 6 | G17: 0.4285714286
A18: 7 | B18: 1 | C18: 1 | D18: 15 | E18: H | F18: 7 | G18: 0.4666666667
A19: 8 | B19: 1 | C19: 1 | D19: 16 | E19: H | F19: 8 | G19: 0.5
A20: 8 | B20: 0 | C20: 2 | D20: 17 | E20: T | F20: 8 | G20: 0.4705882353
A21: 9 | B21: 1 | C21: 1 | D21: 18 | E21: H | F21: 9 | G21: 0.5
A22: 10 | B22: 1 | C22: 1 | D22: 19 | E22: H | F22: 10 | G22: 0.5263157895
A23: 11 | B23: 1 | C23: 1 | D23: 20 | E23: H | F23: 11 | G23: 0.55
A24: 11 | B24: 0 | C24: 2 | D24: 21 | E24: T | F24: 11 | G24: 0.5238095238
A25: 12 | B25: 1 | C25: 1 | D25: 22 | E25: H | F25: 12 | G25: 0.5454545455
A26: 12 | B26: 0 | C26: 2 | D26: 23 | E26: T | F26: 12 | G26: 0.5217391304
A27: 13 | B27: 1 | C27: 1 | D27: 24 | E27: H | F27: 13 | G27: 0.5416666667
A28: 14 | B28: 1 | C28: 1 | D28: 25 | E28: H | F28: 14 | G28: 0.56
A29: 14 | B29: 0 | C29: 2 | D29: 26 | E29: T | F29: 14 | G29: 0.5384615385
A30: 14 | B30: 0 | C30: 2 | D30: 27 | E30: T | F30: 14 | G30: 0.5185185185
A31: 14 | B31: 0 | C31: 2 | D31: 28 | E31: T | F31: 14 | G31: 0.5
A32: 15 | B32: 1 | C32: 1 | D32: 29 | E32: H | F32: 15 | G32: 0.5172413793
A33: 15 | B33: 0 | C33: 2 | D33: 30 | E33: T | F33: 15 | G33: 0.5
A34: 15 | B34: 0 | C34: 2 | D34: 31 | E34: T | F34: 15 | G34: 0.4838709677
A35: 15 | B35: 0 | C35: 2 | D35: 32 | E35: T | F35: 15 | G35: 0.46875
A36: 16 | B36: 1 | C36: 1 | D36: 33 | E36: H | F36: 16 | G36: 0.4848484848
A37: 17 | B37: 1 | C37: 1 | D37: 34 | E37: H | F37: 17 | G37: 0.5
A38: 18 | B38: 1 | C38: 1 | D38: 35 | E38: H | F38: 18 | G38: 0.5142857143
A39: 18 | B39: 0 | C39: 2 | D39: 36 | E39: T | F39: 18 | G39: 0.5
A40: 18 | B40: 0 | C40: 2 | D40: 37 | E40: T | F40: 18 | G40: 0.4864864865
A41: 19 | B41: 1 | C41: 1 | D41: 38 | E41: H | F41: 19 | G41: 0.5
A42: 20 | B42: 1 | C42: 1 | D42: 39 | E42: H | F42: 20 | G42: 0.5128205128
A43: 21 | B43: 1 | C43: 1 | D43: 40 | E43: H | F43: 21 | G43: 0.525
A44: 22 | B44: 1 | C44: 1 | D44: 41 | E44: H | F44: 22 | G44: 0.5365853659
A45: 23 | B45: 1 | C45: 1 | D45: 42 | E45: H | F45: 23 | G45: 0.5476190476
A46: 24 | B46: 1 | C46: 1 | D46: 43 | E46: H | F46: 24 | G46: 0.5581395349
A47: 25 | B47: 1 | C47: 1 | D47: 44 | E47: H | F47: 25 | G47: 0.5681818182
A48: 26 | B48: 1 | C48: 1 | D48: 45 | E48: H | F48: 26 | G48: 0.5777777778
A49: 27 | B49: 1 | C49: 1 | D49: 46 | E49: H | F49: 27 | G49: 0.5869565217
A50: 27 | B50: 0 | C50: 2 | D50: 47 | E50: T | F50: 27 | G50: 0.5744680851
A51: 28 | B51: 1 | C51: 1 | D51: 48 | E51: H | F51: 28 | G51: 0.5833333333
A52: 29 | B52: 1 | C52: 1 | D52: 49 | E52: H | F52: 29 | G52: 0.5918367347
A53: 29 | B53: 0 | C53: 2 | D53: 50 | E53: T | F53: 29 | G53: 0.58
A54: 29 | B54: 0 | C54: 2 | D54: 51 | E54: T | F54: 29 | G54: 0.568627451
A55: 29 | B55: 0 | C55: 2 | D55: 52 | E55: T | F55: 29 | G55: 0.5576923077
A56: 30 | B56: 1 | C56: 1 | D56: 53 | E56: H | F56: 30 | G56: 0.5660377358
A57: 30 | B57: 0 | C57: 2 | D57: 54 | E57: T | F57: 30 | G57: 0.5555555556
A58: 31 | B58: 1 | C58: 1 | D58: 55 | E58: H | F58: 31 | G58: 0.5636363636
A59: 32 | B59: 1 | C59: 1 | D59: 56 | E59: H | F59: 32 | G59: 0.5714285714
A60: 32 | B60: 0 | C60: 2 | D60: 57 | E60: T | F60: 32 | G60: 0.5614035088
A61: 33 | B61: 1 | C61: 1 | D61: 58 | E61: H | F61: 33 | G61: 0.5689655172
A62: 33 | B62: 0 | C62: 2 | D62: 59 | E62: T | F62: 33 | G62: 0.5593220339
A63: 34 | B63: 1 | C63: 1 | D63: 60 | E63: H | F63: 34 | G63: 0.5666666667
A64: 34 | B64: 0 | C64: 2 | D64: 61 | E64: T | F64: 34 | G64: 0.5573770492
A65: 34 | B65: 0 | C65: 2 | D65: 62 | E65: T | F65: 34 | G65: 0.5483870968
A66: 34 | B66: 0 | C66: 2 | D66: 63 | E66: T | F66: 34 | G66: 0.5396825397
A67: 35 | B67: 1 | C67: 1 | D67: 64 | E67: H | F67: 35 | G67: 0.546875
A68: 35 | B68: 0 | C68: 2 | D68: 65 | E68: T | F68: 35 | G68: 0.5384615385
A69: 35 | B69: 0 | C69: =INT(RAND()*2)+1 -> 2 | D69: 66 | E69: T | F69: 35 | G69: 0.5303030303
A70: 35 | B70: 0 | C70: 2 | D70: 67 | E70: T | F70: 35 | G70: 0.5223880597
A71: 36 | B71: 1 | C71: 1 | D71: 68 | E71: H | F71: 36 | G71: 0.5294117647
A72: 36 | B72: 0 | C72: 2 | D72: 69 | E72: T | F72: 36 | G72: 0.5217391304
A73: 36 | B73: 0 | C73: 2 | D73: 70 | E73: T | F73: 36 | G73: 0.5142857143
A74: 36 | B74: 0 | C74: 2 | D74: 71 | E74: T | F74: 36 | G74: 0.5070422535
A75: 36 | B75: 0 | C75: 2 | D75: 72 | E75: T | F75: 36 | G75: 0.5
A76: 37 | B76: 1 | C76: 1 | D76: 73 | E76: H | F76: 37 | G76: 0.5068493151
A77: 37 | B77: 0 | C77: 2 | D77: 74 | E77: T | F77: 37 | G77: 0.5
A78: 37 | B78: 0 | C78: 2 | D78: 75 | E78: T | F78: 37 | G78: 0.4933333333
A79: =A78+B79 -> 37 | B79: =IF(E79="H",1,0) -> 0 | C79: 2 | D79: 76 | E79: =IF(C79=1,"H","T") -> T | F79: =A79 -> 37 | G79: =F79/D79 -> 0.4868421053
A80: 38 | B80: 1 | C80: 1 | D80: 77 | E80: H | F80: 38 | G80: 0.4935064935
A81: 38 | B81: 0 | C81: 2 | D81: 78 | E81: T | F81: 38 | G81: 0.4871794872
A82: 39 | B82: 1 | C82: 1 | D82: 79 | E82: H | F82: 39 | G82: 0.4936708861
A83: 40 | B83: 1 | C83: 1 | D83: 80 | E83: H | F83: 40 | G83: 0.5
A84: 41 | B84: 1 | C84: 1 | D84: 81 | E84: H | F84: 41 | G84: 0.5061728395
A85: 42 | B85: 1 | C85: 1 | D85: 82 | E85: H | F85: 42 | G85: 0.512195122
A86: 42 | B86: 0 | C86: 2 | D86: 83 | E86: T | F86: 42 | G86: 0.5060240964
A87: 42 | B87: 0 | C87: 2 | D87: 84 | E87: T | F87: 42 | G87: 0.5
A88: 43 | B88: 1 | C88: 1 | D88: 85 | E88: H | F88: 43 | G88: 0.5058823529
A89: 43 | B89: 0 | C89: 2 | D89: 86 | E89: T | F89: 43 | G89: 0.5
A90: 43 | B90: 0 | C90: 2 | D90: 87 | E90: T | F90: 43 | G90: 0.4942528736
A91: 44 | B91: 1 | C91: 1 | D91: 88 | E91: H | F91: 44 | G91: 0.5
A92: 44 | B92: 0 | C92: 2 | D92: 89 | E92: T | F92: 44 | G92: 0.4943820225
A93: 44 | B93: 0 | C93: 2 | D93: 90 | E93: T | F93: 44 | G93: 0.4888888889
A94: 44 | B94: 0 | C94: 2 | D94: 91 | E94: T | F94: 44 | G94: 0.4835164835
A95: 45 | B95: 1 | C95: 1 | D95: 92 | E95: H | F95: 45 | G95: 0.4891304348
A96: 46 | B96: 1 | C96: 1 | D96: 93 | E96: H | F96: 46 | G96: 0.4946236559
A97: 46 | B97: 0 | C97: 2 | D97: 94 | E97: T | F97: 46 | G97: 0.4893617021
A98: 47 | B98: 1 | C98: 1 | D98: 95 | E98: H | F98: 47 | G98: 0.4947368421
A99: 48 | B99: 1 | C99: 1 | D99: 96 | E99: H | F99: 48 | G99: 0.5
A100: 49 | B100: 1 | C100: 1 | D100: 97 | E100: H | F100: 49 | G100: 0.5051546392
A101: 50 | B101: 1 | C101: 1 | D101: 98 | E101: H | F101: 50 | G101: 0.5102040816
A102: 50 | B102: 0 | C102: 2 | D102: 99 | E102: T | F102: 50 | G102: 0.5050505051
A103: 51 | B103: 1 | C103: 1 | D103: 100 | E103: H | F103: 51 | G103: 0.51
A104: 52 | B104: 1 | C104: 1 | D104: 101 | E104: H | F104: 52 | G104: 0.5148514851
A105: 52 | B105: 0 | C105: 2 | D105: 102 | E105: T | F105: 52 | G105: 0.5098039216
A106: 53 | B106: 1 | C106: 1 | D106: 103 | E106: H | F106: 53 | G106: 0.5145631068
A107: 53 | B107: 0 | C107: 2 | D107: 104 | E107: T | F107: 53 | G107: 0.5096153846
A108: 54 | B108: 1 | C108: 1 | D108: 105 | E108: H | F108: 54 | G108: 0.5142857143
A109: 54 | B109: 0 | C109: 2 | D109: 106 | E109: T | F109: 54 | G109: 0.5094339623
A110: 54 | B110: 0 | C110: 2 | D110: 107 | E110: T | F110: 54 | G110: 0.5046728972
A111: 55 | B111: 1 | C111: 1 | D111: 108 | E111: H | F111: 55 | G111: 0.5092592593
A112: 56 | B112: 1 | C112: 1 | D112: 109 | E112: H | F112: 56 | G112: 0.5137614679
A113: 57 | B113: 1 | C113: 1 | D113: 110 | E113: H | F113: 57 | G113: 0.5181818182
A114: 58 | B114: 1 | C114: 1 | D114: 111 | E114: H | F114: 58 | G114: 0.5225225225
A115: 58 | B115: 0 | C115: 2 | D115: 112 | E115: T | F115: 58 | G115: 0.5178571429
A116: 58 | B116: 0 | C116: 2 | D116: 113 | E116: T | F116: 58 | G116: 0.5132743363
A117: 58 | B117: 0 | C117: 2 | D117: 114 | E117: T | F117: 58 | G117: 0.5087719298
A118: 58 | B118: 0 | C118: 2 | D118: 115 | E118: T | F118: 58 | G118: 0.5043478261
A119: 59 | B119: 1 | C119: 1 | D119: 116 | E119: H | F119: 59 | G119: 0.5086206897
A120: 60 | B120: 1 | C120: 1 | D120: 117 | E120: H | F120: 60 | G120: 0.5128205128
A121: 60 | B121: 0 | C121: 2 | D121: 118 | E121: T | F121: 60 | G121: 0.5084745763
A122: 60 | B122: 0 | C122: 2 | D122: 119 | E122: T | F122: 60 | G122: 0.5042016807
A123: 60 | B123: 0 | C123: 2 | D123: 120 | E123: T | F123: 60 | G123: 0.5
A124: 60 | B124: 0 | C124: 2 | D124: 121 | E124: T | F124: 60 | G124: 0.4958677686
A125: 61 | B125: 1 | C125: 1 | D125: 122 | E125: H | F125: 61 | G125: 0.5
A126: 62 | B126: 1 | C126: 1 | D126: 123 | E126: H | F126: 62 | G126: 0.5040650407
A127: 63 | B127: 1 | C127: 1 | D127: 124 | E127: H | F127: 63 | G127: 0.5080645161
A128: 63 | B128: 0 | C128: 2 | D128: 125 | E128: T | F128: 63 | G128: 0.504
A129: 64 | B129: 1 | C129: 1 | D129: 126 | E129: H | F129: 64 | G129: 0.5079365079
A130: 65 | B130: 1 | C130: 1 | D130: 127 | E130: H | F130: 65 | G130: 0.5118110236
A131: 65 | B131: 0 | C131: 2 | D131: 128 | E131: T | F131: 65 | G131: 0.5078125
A132: 66 | B132: 1 | C132: 1 | D132: 129 | E132: H | F132: 66 | G132: 0.511627907
A133: 66 | B133: 0 | C133: =INT(RAND()*2)+1 -> 2 | D133: 130 | E133: T | F133: 66 | G133: 0.5076923077
A134: 66 | B134: 0 | C134: 2 | D134: 131 | E134: T | F134: 66 | G134: 0.5038167939
A135: 66 | B135: 0 | C135: 2 | D135: 132 | E135: T | F135: 66 | G135: 0.5
A136: 67 | B136: 1 | C136: 1 | D136: 133 | E136: H | F136: 67 | G136: 0.5037593985
A137: 68 | B137: 1 | C137: 1 | D137: 134 | E137: H | F137: 68 | G137: 0.5074626866
A138: 68 | B138: 0 | C138: 2 | D138: 135 | E138: T | F138: 68 | G138: 0.5037037037
A139: 68 | B139: 0 | C139: 2 | D139: 136 | E139: T | F139: 68 | G139: 0.5
A140: 69 | B140: 1 | C140: 1 | D140: 137 | E140: H | F140: 69 | G140: 0.503649635
A141: 70 | B141: 1 | C141: 1 | D141: 138 | E141: H | F141: 70 | G141: 0.5072463768
A142: 71 | B142: 1 | C142: 1 | D142: 139 | E142: H | F142: 71 | G142: 0.5107913669
A143: =A142+B143 -> 71 | B143: =IF(E143="H",1,0) -> 0 | C143: 2 | D143: 140 | E143: =IF(C143=1,"H","T") -> T | F143: =A143 -> 71 | G143: =F143/D143 -> 0.5071428571
A144: 71 | B144: 0 | C144: 2 | D144: 141 | E144: T | F144: 71 | G144: 0.5035460993
A145: 71 | B145: 0 | C145: 2 | D145: 142 | E145: T | F145: 71 | G145: 0.5
A146: 72 | B146: 1 | C146: 1 | D146: 143 | E146: H | F146: 72 | G146: 0.5034965035
A147: 73 | B147: 1 | C147: 1 | D147: 144 | E147: H | F147: 73 | G147: 0.5069444444
A148: 73 | B148: 0 | C148: 2 | D148: 145 | E148: T | F148: 73 | G148: 0.5034482759
A149: 73 | B149: 0 | C149: 2 | D149: 146 | E149: T | F149: 73 | G149: 0.5
A150: 74 | B150: 1 | C150: 1 | D150: 147 | E150: H | F150: 74 | G150: 0.5034013605
A151: 74 | B151: 0 | C151: 2 | D151: 148 | E151: T | F151: 74 | G151: 0.5
A152: 75 | B152: 1 | C152: 1 | D152: 149 | E152: H | F152: 75 | G152: 0.5033557047
A153: 75 | B153: 0 | C153: 2 | D153: 150 | E153: T | F153: 75 | G153: 0.5
A154: 76 | B154: 1 | C154: 1 | D154: 151 | E154: H | F154: 76 | G154: 0.5033112583
A155: 76 | B155: 0 | C155: 2 | D155: 152 | E155: T | F155: 76 | G155: 0.5
A156: 76 | B156: 0 | C156: 2 | D156: 153 | E156: T | F156: 76 | G156: 0.4967320261
A157: 77 | B157: 1 | C157: 1 | D157: 154 | E157: H | F157: 77 | G157: 0.5
A158: 78 | B158: 1 | C158: 1 | D158: 155 | E158: H | F158: 78 | G158: 0.5032258065
A159: 79 | B159: 1 | C159: 1 | D159: 156 | E159: H | F159: 79 | G159: 0.5064102564
A160: 79 | B160: 0 | C160: 2 | D160: 157 | E160: T | F160: 79 | G160: 0.5031847134
A161: 79 | B161: 0 | C161: 2 | D161: 158 | E161: T | F161: 79 | G161: 0.5
A162: 79 | B162: 0 | C162: 2 | D162: 159 | E162: T | F162: 79 | G162: 0.4968553459
A163: 80 | B163: 1 | C163: 1 | D163: 160 | E163: H | F163: 80 | G163: 0.5
A164: 80 | B164: 0 | C164: 2 | D164: 161 | E164: T | F164: 80 | G164: 0.4968944099
A165: 80 | B165: 0 | C165: 2 | D165: 162 | E165: T | F165: 80 | G165: 0.4938271605
A166: 81 | B166: 1 | C166: 1 | D166: 163 | E166: H | F166: 81 | G166: 0.4969325153
A167: 82 | B167: 1 | C167: 1 | D167: 164 | E167: H | F167: 82 | G167: 0.5
A168: 82 | B168: 0 | C168: 2 | D168: 165 | E168: T | F168: 82 | G168: 0.496969697
A169: 82 | B169: 0 | C169: 2 | D169: 166 | E169: T | F169: 82 | G169: 0.4939759036
A170: 83 | B170: 1 | C170: 1 | D170: 167 | E170: H | F170: 83 | G170: 0.497005988
A171: 84 | B171: 1 | C171: 1 | D171: 168 | E171: H | F171: 84 | G171: 0.5
A172: 85 | B172: 1 | C172: 1 | D172: 169 | E172: H | F172: 85 | G172: 0.5029585799
A173: 86 | B173: 1 | C173: 1 | D173: 170 | E173: H | F173: 86 | G173: 0.5058823529
A174: 87 | B174: 1 | C174: 1 | D174: 171 | E174: H | F174: 87 | G174: 0.5087719298
A175: 88 | B175: 1 | C175: 1 | D175: 172 | E175: H | F175: 88 | G175: 0.511627907
A176: 89 | B176: 1 | C176: 1 | D176: 173 | E176: H | F176: 89 | G176: 0.5144508671
A177: 90 | B177: 1 | C177: 1 | D177: 174 | E177: H | F177: 90 | G177: 0.5172413793
A178: 91 | B178: 1 | C178: 1 | D178: 175 | E178: H | F178: 91 | G178: 0.52
A179: 91 | B179: 0 | C179: 2 | D179: 176 | E179: T | F179: 91 | G179: 0.5170454545
A180: 91 | B180: 0 | C180: 2 | D180: 177 | E180: T | F180: 91 | G180: 0.5141242938
A181: 91 | B181: 0 | C181: 2 | D181: 178 | E181: T | F181: 91 | G181: 0.5112359551
A182: 91 | B182: 0 | C182: 2 | D182: 179 | E182: T | F182: 91 | G182: 0.5083798883
A183: 92 | B183: 1 | C183: 1 | D183: 180 | E183: H | F183: 92 | G183: 0.5111111111
A184: 93 | B184: 1 | C184: 1 | D184: 181 | E184: H | F184: 93 | G184: 0.5138121547
A185: 93 | B185: 0 | C185: 2 | D185: 182 | E185: T | F185: 93 | G185: 0.510989011
A186: 94 | B186: 1 | C186: 1 | D186: 183 | E186: H | F186: 94 | G186: 0.5136612022
A187: 95 | B187: 1 | C187: 1 | D187: 184 | E187: H | F187: 95 | G187: 0.5163043478
A188: 96 | B188: 1 | C188: 1 | D188: 185 | E188: H | F188: 96 | G188: 0.5189189189
A189: 96 | B189: 0 | C189: 2 | D189: 186 | E189: T | F189: 96 | G189: 0.5161290323
A190: 96 | B190: 0 | C190: 2 | D190: 187 | E190: T | F190: 96 | G190: 0.513368984
A191: 96 | B191: 0 | C191: 2 | D191: 188 | E191: T | F191: 96 | G191: 0.5106382979
A192: 97 | B192: 1 | C192: 1 | D192: 189 | E192: H | F192: 97 | G192: 0.5132275132
A193: 97 | B193: 0 | C193: 2 | D193: 190 | E193: T | F193: 97 | G193: 0.5105263158
A194: 98 | B194: 1 | C194: 1 | D194: 191 | E194: H | F194: 98 | G194: 0.5130890052
A195: 99 | B195: 1 | C195: 1 | D195: 192 | E195: H | F195: 99 | G195: 0.515625
A196: 99 | B196: 0 | C196: 2 | D196: 193 | E196: T | F196: 99 | G196: 0.5129533679
A197: 100 | B197: 1 | C197: =INT(RAND()*2)+1 -> 1 | D197: 194 | E197: H | F197: 100 | G197: 0.5154639175
A198: 100 | B198: 0 | C198: 2 | D198: 195 | E198: T | F198: 100 | G198: 0.5128205128
A199: 101 | B199: 1 | C199: 1 | D199: 196 | E199: H | F199: 101 | G199: 0.5153061224
A200: 101 | B200: 0 | C200: 2 | D200: 197 | E200: T | F200: 101 | G200: 0.5126903553
... 303 more rows

Sheet Sheet2

Sheet Sheet3
